bitfinex/quotes_BTCUSD_20220204
["timestamp","ask_amount","ask_price","bid_price","bid_amount"]
[1643935647382,2.747133,37177.0,37176.0,0.75962484]
[1643935647583,2.747133,37177.0,37176.0,0.75900218]
[1643935647782,3.0919713,37177.0,37176.0,0.75900218]
[1643935648427,2.4038,37177.0,37176.0,0.75900218]
[1643935648828,2.747133,37177.0,37176.0,0.75900218]
[1643935649429,0.597133,37177.0,37176.0,0.75900218]
[1643935650130,1.647133,37177.0,37176.0,0.75900218]
[1643935650530,1.87199016,37177.0,37176.0,0.54043998]
[1643935651230,0.597133,37177.0,37176.0,0.54043998]
[1643935652285,0.94194644,37177.0,37176.0,0.54043998]
[1643935652485,0.2538,37177.0,37176.0,0.54043998]
[1643935652687,0.84198743,37177.0,37176.0,0.54043998]
[1643935652886,0.38740131,37177.0,37176.0,0.54043998]
[1643935653687,0.1,37177.0,37176.0,0.54043998]
[1643935653886,0.38742642,37177.0,37176.0,0.54043998]
[1643935654788,0.1,37177.0,37176.0,0.54043998]
[1643935655390,0.33729728,37177.0,37176.0,0.54043998]
[1643935655591,0.05,37177.0,37176.0,0.54043998]
[1643935655790,0.39485443,37178.0,37176.0,0.54043998]
[1643935656031,0.05,37177.0,37176.0,0.54043998]
[1643935660781,0.39347743,37178.0,37176.0,0.54043998]
[1643935660982,0.343333,37177.0,37176.0,0.54043998]
[1643935661383,0.393333,37177.0,37176.0,0.54043998]
[1643935661785,0.73818743,37177.0,37176.0,0.54043998]
[1643935661984,0.39485443,37177.0,37176.0,0.89307798]
[1643935662184,0.393333,37177.0,37176.0,0.54043998]
[1643935662384,0.73806369,37177.0,37176.0,0.54043998]
[1643935662585,0.05,37177.0,37176.0,1.11351407]
[1643935662786,0.393333,37177.0,37176.0,0.54043998]
[1643935662984,0.393333,37177.0,37176.0,0.76789789]
[1643935664131,0.393333,37177.0,37176.0,0.54043998]
[1643935664632,0.493333,37177.0,37176.0,0.54043998]
[1643935668982,0.393333,37177.0,37176.0,0.54043998]
[1643935669183,0.393333,37177.0,37176.0,0.76058711]
[1643935669383,0.05,37177.0,37176.0,0.76058711]
[1643935672228,0.05,37177.0,37176.0,0.54043998]
[1643935672430,0.33705439,37177.0,37176.0,0.54043998]
[1643935672631,0.28705439,37177.0,37176.0,0.54043998]
[1643935673030,0.33705439,37177.0,37176.0,0.54043998]
[1643935673231,0.05,37177.0,37176.0,0.54043998]
[1643935673631,0.393333,37177.0,37176.0,0.54043998]
[1643935674432,0.73806369,37177.0,37176.0,0.38819238]
[1643935674686,1.18806369,37177.0,37176.0,0.38819238]
[1643935674882,0.39473069,37177.0,37176.0,0.38819238]
[1643935675183,0.73806369,37177.0,37176.0,0.38819238]
[1643935675782,0.39473069,37177.0,37176.0,0.74083038]
[1643935675981,0.73806369,37177.0,37176.0,0.38819238]
[1643935676181,0.39473069,37177.0,37176.0,0.74083038]
[1643935676382,0.49473069,37177.0,37176.0,0.38819238]
[1643935676781,0.15,37177.0,37176.0,0.74083038]
[1643935677184,0.05,37177.0,37176.0,0.74083038]
[1643935677385,0.33664117,37177.0,37176.0,0.74083038]
[1643935677984,0.33664117,37177.0,37176.0,0.38819238]
[1643935678930,0.33664117,37177.0,37176.0,0.74083038]
[1643935679531,0.38664117,37177.0,37176.0,0.74083038]
[1643935679930,0.38664117,37177.0,37176.0,0.38819238]
[1643935680731,0.1,37177.0,37176.0,0.38819238]
[1643935681231,0.1,37177.0,37176.0,0.74083038]
[1643935681431,0.1,37177.0,37176.0,0.38819238]
[1643935682383,0.1,37177.0,37176.0,0.74083038]
[1643935682584,0.38674208,37177.0,37176.0,0.74083038]
[1643935682785,0.38674208,37177.0,37176.0,0.38819238]
[1643935684885,0.3867521,37177.0,37176.0,0.38819238]
[1643935685485,0.1,37177.0,37176.0,0.38819238]
[1643935685687,0.38674005,37177.0,37176.0,0.38819238]
[1643935686534,1.38674005,37177.0,37176.0,0.38819238]
[1643935686735,0.38674005,37177.0,37176.0,0.38819238]
[1643935688337,0.38682979,37177.0,37176.0,0.38819238]
[1643935689237,0.38010575,37177.0,37176.0,0.38819238]
[1643935691191,0.09327596,37177.0,37176.0,0.74083038]
[1643935691391,0.05,37177.0,37176.0,0.43819238]
[1643935691591,0.44473069,37180.0,37176.0,0.43819238]
[1643935691793,0.44473069,37180.0,37179.0,0.05]
[1643935691996,0.44473069,37180.0,37179.0,0.402638]
[1643935692212,0.44473069,37180.0,37179.0,0.50072013]
[1643935692397,0.0004,37181.0,37179.0,0.50072013]
[1643935692398,0.0004,37181.0,37180.0,2.65]
[1643935692594,0.0004,37181.0,37180.0,3.32988034]
[1643935693433,0.0004,37181.0,37180.0,3.002638]
[1643935700688,0.0004,37181.0,37180.0,3.052638]
[1643935710041,0.0004,37181.0,37180.0,0.402638]
[1643935710240,0.5504,37181.0,37180.0,0.352638]
[1643935711344,2.5004,37181.0,37180.0,0.31737421]
[1643935711545,1.097533,37181.0,37179.0,0.00062262]
[1643935711741,1.552646,37180.0,37179.0,0.00062262]
[1643935711941,1.606446,37180.0,37179.0,0.00062262]
[1643935712189,1.2538,37180.0,37179.0,0.00062262]
[1643935712384,1.2538,37180.0,37179.0,0.352646]
[1643935713784,0.0538,37180.0,37179.0,0.352646]
[1643935714785,0.1038,37180.0,37179.0,0.352646]
[1643935715189,0.0538,37180.0,37179.0,0.352646]
[1643935721291,0.0538,37180.0,37179.0,0.66868915]
[1643935721493,0.0538,37180.0,37179.0,0.80322308]
[1643935722896,0.0004,37181.0,37179.0,0.80322308]
[1643935723094,0.0004,37181.0,37179.0,0.48717993]
[1643935724539,0.0004,37181.0,37180.0,0.05]
[1643935724838,0.0004,37181.0,37180.0,0.352646]
[1643935727190,0.5004,37181.0,37180.0,0.352646]
[1643935727587,0.5504,37181.0,37180.0,0.352646]
[1643935727887,0.5504,37181.0,37178.0,0.05]
[1643935728089,0.5504,37181.0,37179.0,0.35326862]
[1643935728287,0.5504,37181.0,37179.0,0.00062262]
[1643935729188,0.5504,37181.0,37176.0,0.72596691]
[1643935729387,0.5504,37181.0,37178.0,0.00062262]
[1643935729588,0.5504,37181.0,37179.0,0.352646]
[1643935729787,1.41660658,37180.0,37178.0,0.00062262]
[1643935729988,1.06396058,37180.0,37178.0,0.00062262]
[1643935730390,0.26396058,37180.0,37179.0,0.352646]
[1643935730592,0.26396058,37180.0,37177.0,0.00062264]
[1643935730791,0.26396058,37180.0,37178.0,0.352646]
[1643935732736,0.0504,37181.0,37178.0,0.352646]
[1643935733141,0.0004,37181.0,37178.0,0.352646]
[1643935734139,0.0004,37181.0,37178.0,0.35326863]
[1643935734982,0.0004,37181.0,37178.0,0.35315624]
[1643935735185,0.0004,37181.0,37178.0,0.35253361]
[1643935735384,0.0004,37181.0,37178.0,0.35315624]
[1643935736283,0.0004,37181.0,37178.0,0.35253361]
[1643935736485,0.0004,37181.0,37178.0,0.35315624]
[1643935736986,0.0004,37181.0,37178.0,0.00062263]
[1643935737586,0.0004,37181.0,37176.0,0.3883939]
[1643935737785,0.0004,37181.0,37178.0,0.00062263]
[1643935738732,0.0004,37181.0,37176.0,0.3883939]
[1643935738932,0.0004,37181.0,37178.0,0.00062263]
[1643935739933,0.0004,37181.0,37176.0,0.3883939]
[1643935740234,0.0004,37181.0,37178.0,0.00062263]
[1643935741237,0.0004,37181.0,37179.0,0.3116534]
[1643935741438,0.0004,37181.0,37180.0,0.352652]
[1643935741736,0.0004,37181.0,37178.0,0.10990263]
[1643935742193,0.0004,37181.0,37180.0,0.352652]
[1643935746834,0.5504,37181.0,37180.0,0.352652]
[1643935747032,0.903052,37181.0,37179.0,0.00062262]
[1643935747233,0.5504,37181.0,37179.0,0.30003082]
[1643935747532,0.5504,37181.0,37179.0,0.30065344]
[1643935748332,0.5504,37181.0,37179.0,0.30003082]
[1643935748536,0.902652,37180.0,37179.0,0.30003082]
[1643935748732,0.55,37180.0,37178.0,0.00062262]
[1643935749534,0.55,37180.0,37177.0,0.352652]
[1643935749788,0.6,37180.0,37177.0,0.35327464]
[1643935750787,0.6,37180.0,37177.0,0.352652]
[1643935750988,0.6,37180.0,37177.0,0.35327465]
[1643935751990,0.6,37180.0,37176.0,0.3883939]
[1643935752190,0.6,37180.0,37177.0,0.35327465]
[1643935752691,0.94407272,37180.0,37177.0,0.35327465]
[1643935752891,0.94407272,37180.0,37177.0,0.00062265]
[1643935753190,0.94407272,37180.0,37176.0,0.3883939]
[1643935753446,0.94407272,37180.0,37177.0,0.35327465]
[1643935754046,0.94407272,37180.0,37177.0,0.06790065]
[1643935754246,0.352652,37179.0,37177.0,0.06790065]
[1643935754545,0.05,37179.0,37177.0,0.06790065]
[1643935754747,0.05,37179.0,37178.0,0.352652]
[1643935754947,0.94407272,37180.0,37177.0,0.06790065]
[1643935755145,0.94407272,37180.0,37178.0,0.352652]
[1643935755345,0.94407272,37180.0,37178.0,0.41992718]
[1643935755346,0.34407272,37179.0,37178.0,0.41992718]
[1643935755746,0.34407272,37179.0,37178.0,0.62578929]
[1643935756147,0.39407272,37180.0,37178.0,0.62578929]
[1643935756350,0.39407272,37180.0,37179.0,0.20703545]
[1643935756647,0.34447272,37181.0,37179.0,0.60968745]
[1643935756848,0.34447272,37181.0,37180.0,0.88373272]
[1643935757287,0.34447272,37181.0,37180.0,0.95261272]
[1643935757488,0.00036058,37185.0,37181.0,2.15]
[1643935757489,0.3444333,37185.0,37181.0,2.15]
[1643935757689,0.38498025,37186.0,37182.0,0.61793095]
[1643935757887,0.04024394,37186.0,37185.0,0.952652]
[1643935758088,0.04024394,37186.0,37185.0,0.63073803]
[1643935758287,0.04090758,37186.0,37185.0,0.27808603]
[1643935758487,0.04090758,37186.0,37185.0,0.36222974]
[1643935758889,0.04090758,37186.0,37185.0,0.27808603]
[1643935759087,0.04024394,37186.0,37185.0,0.27808603]
[1643935761535,0.04024394,37186.0,37185.0,0.22808603]
[1643935761934,0.04024394,37186.0,37184.0,0.06725055]
[1643935762235,0.04060452,37186.0,37183.0,0.5463557]
[1643935762434,0.04060452,37186.0,37183.0,0.54458685]
[1643935762633,0.04060452,37186.0,37183.0,0.05]
[1643935762835,0.04060452,37186.0,37181.0,0.05]
[1643935763034,0.352652,37185.0,37181.0,0.05]
[1643935763235,0.00036058,37185.0,37181.0,0.05]
[1643935763435,0.00036058,37185.0,37180.0,0.32381898]
[1643935763635,0.34407272,37185.0,37181.0,0.352652]
[1643935763835,0.3444333,37185.0,37179.0,0.41179947]
[1643935764037,0.3444333,37185.0,37179.0,0.41117686]
[1643935764234,0.3444333,37185.0,37179.0,0.41179947]
[1643935764692,0.34407272,37184.0,37181.0,0.352652]
[1643935764887,0.00036058,37184.0,37181.0,0.352652]
[1643935765089,0.00036058,37184.0,37182.0,0.067268]
[1643935765289,0.3444333,37185.0,37182.0,0.067268]
[1643935766089,0.352652,37184.0,37182.0,0.13453183]
[1643935766288,0.35301258,37184.0,37182.0,0.13453183]
[1643935766490,0.05036058,37184.0,37182.0,0.067268]
[1643935766691,0.05,37184.0,37182.0,0.41992]
[1643935766988,0.00036058,37185.0,37182.0,0.487183]
[1643935767188,0.09126815,37186.0,37182.0,0.134531]
[1643935767388,0.04126815,37186.0,37182.0,0.134531]
[1643935767587,0.04060452,37186.0,37182.0,0.134531]
[1643935767789,0.04126816,37186.0,37182.0,0.134531]
[1643935768838,0.04060452,37186.0,37182.0,0.134531]
[1643935769039,0.44083403,37186.0,37182.0,0.067268]
[1643935769241,0.44083403,37186.0,37182.0,0.13453079]
[1643935769242,0.49083403,37186.0,37182.0,0.13453079]
[1643935769539,0.09127007,37186.0,37183.0,0.352652]
[1643935769741,0.09127007,37186.0,37182.0,0.13453079]
[1643935769940,0.09060452,37186.0,37182.0,0.13453079]
[1643935770141,0.09127007,37186.0,37182.0,0.13453079]
[1643935770340,0.09127007,37186.0,37182.0,0.20179679]
[1643935770541,0.09127007,37186.0,37182.0,0.134534]
[1643935771143,0.09060452,37186.0,37182.0,0.134534]
[1643935771342,0.34480126,37185.0,37182.0,0.134534]
[1643935771544,0.34480126,37184.0,37183.0,0.352652]
[1643935771744,0.39480126,37184.0,37183.0,0.352652]
[1643935771941,0.39480126,37184.0,37182.0,0.134534]
[1643935772600,0.84480126,37184.0,37182.0,0.134534]
[1643935772800,0.39480126,37184.0,37182.0,0.34283304]
[1643935773001,0.05,37184.0,37183.0,0.20799622]
[1643935773202,0.00036058,37185.0,37183.0,0.25799622]
[1643935773400,0.0412698,37186.0,37184.0,0.27780131]
[1643935773600,0.69745326,37185.0,37184.0,0.067259]
[1643935773801,0.34480126,37185.0,37184.0,0.067259]
[1643935774001,0.04126981,37186.0,37184.0,0.067259]
[1643935774002,0.38607107,37186.0,37184.0,0.067259]
[1643935774303,0.73872307,37186.0,37184.0,0.067259]
[1643935774501,0.38607107,37186.0,37184.0,0.067259]
[1643935774701,0.73805778,37186.0,37184.0,0.067259]
[1643935774901,0.41146078,37186.0,37184.0,0.067259]
[1643935775103,0.78805778,37186.0,37184.0,0.067259]
[1643935775302,0.46146078,37186.0,37184.0,0.067259]
[1643935775803,0.43540578,37186.0,37184.0,0.067259]
[1643935776235,0.4350452,37186.0,37184.0,0.067259]
[1643935776637,0.43540578,37186.0,37184.0,0.067259]
[1643935777437,0.4350452,37186.0,37184.0,0.067259]
[1643935777839,0.43540578,37186.0,37184.0,0.067259]
[1643935778441,0.34480126,37185.0,37181.0,0.269049]
[1643935778644,0.44325652,37186.0,37181.0,0.269049]
[1643935778645,0.34480126,37184.0,37181.0,0.269049]
[1643935778841,0.34480126,37184.0,37182.0,0.352652]
[1643935779041,0.34480126,37184.0,37179.0,0.00062261]
[1643935779042,0.39480126,37184.0,37179.0,0.00062261]
[1643935779242,0.34480126,37183.0,37180.0,0.352652]
[1643935779445,0.34516184,37183.0,37179.0,0.00062261]
[1643935779692,0.34516184,37183.0,37181.0,0.06727]
[1643935780486,0.34516184,37183.0,37182.0,0.05]
[1643935780688,0.00010814,37183.0,37182.0,0.61675913]
[1643935780888,0.00036058,37184.0,37183.0,0.352652]
[1643935781088,0.00036058,37185.0,37183.0,0.63026809]
[1643935781287,0.00036058,37185.0,37184.0,0.04989186]
[1643935781487,0.00036058,37185.0,37184.0,0.12914186]
[1643935781488,0.00010814,37185.0,37184.0,0.12914186]
[1643935782091,0.00010814,37185.0,37184.0,0.48179386]
[1643935782287,0.00010814,37185.0,37184.0,0.54904459]
[1643935782688,0.02068635,37186.0,37185.0,0.352652]
[1643935782887,0.00077346,37186.0,37185.0,0.62561283]
[1643935783087,0.00066532,37186.0,37185.0,0.62561283]
[1643935783288,0.00010814,37186.0,37185.0,0.34021583]
[1643935783537,0.00010814,37186.0,37185.0,0.067255]
[1643935783738,0.35276014,37186.0,37185.0,0.067255]
[1643935784744,0.00010814,37186.0,37185.0,0.067255]
[1643935785540,0.35276014,37186.0,37185.0,0.067255]
[1643935786541,0.69744874,37186.0,37185.0,0.067255]
[1643935786742,0.35276014,37186.0,37185.0,0.067255]
[1643935787888,0.69740301,37186.0,37184.0,0.04989186]
[1643935788089,2.14463353,37185.0,37184.0,0.04989186]
[1643935788288,2.17068853,37185.0,37184.0,0.04989186]
[1643935789189,1.826055,37185.0,37184.0,0.04989186]
[1643935789388,1.893328,37185.0,37184.0,0.04989186]
[1643935790592,0.352652,37184.0,37182.0,0.04989186]
[1643935790789,0.69758274,37184.0,37182.0,0.04989186]
[1643935791237,0.34457016,37184.0,37183.0,0.352652]
[1643935791437,0.00010814,37184.0,37183.0,0.352652]
[1643935792038,0.00010814,37184.0,37183.0,0.40254386]
[1643935792237,0.00010814,37184.0,37183.0,0.352652]
[1643935792437,0.00010814,37184.0,37181.0,0.067269]
[1643935792641,0.00010814,37182.0,37181.0,0.067269]
[1643935794443,0.00010814,37182.0,37181.0,0.67785338]
[1643935798637,0.00036058,37185.0,37181.0,0.67785338]
[1643935798837,0.39992454,37186.0,37181.0,0.74511938]
[1643935799037,0.00010814,37184.0,37182.0,0.352652]
[1643935799238,0.00010814,37184.0,37183.0,0.952652]
[1643935799439,0.00010814,37184.0,37183.0,0.40254386]
[1643935800938,0.00010814,37184.0,37183.0,0.40246962]
[1643935801338,0.50010814,37184.0,37183.0,0.40246962]
[1643935801838,0.84476682,37184.0,37183.0,0.40246962]
[1643935802038,0.00010814,37184.0,37183.0,0.61198376]
[1643935802289,1.04476682,37184.0,37183.0,0.40246962]
[1643935802489,0.70010814,37184.0,37183.0,0.40246962]
[1643935802787,0.70010814,37184.0,37183.0,0.35257776]
[1643935802990,1.04478899,37184.0,37183.0,0.35257776]
[1643935804689,0.34478899,37184.0,37183.0,0.40246962]
[1643935805595,0.34478899,37184.0,37183.0,0.35257776]
[1643935806037,0.00010814,37184.0,37183.0,0.61030286]
[1643935809440,0.3448351,37184.0,37183.0,0.610411]
[1643935810292,0.8948351,37184.0,37183.0,0.610411]
[1643935810489,0.3448351,37184.0,37183.0,0.97200731]
[1643935811191,1.0448351,37184.0,37183.0,0.97200731]
[1643935811889,0.3448351,37184.0,37183.0,0.3526859]
[1643935812091,1.3448351,37184.0,37183.0,0.3526859]
[1643935812590,0.3448351,37184.0,37183.0,0.60917179]
[1643935812790,0.3448351,37184.0,37183.0,0.25659403]
[1643935812989,0.3448351,37184.0,37183.0,0.60921803]
[1643935813191,0.00010814,37184.0,37183.0,0.60921803]
[1643935813443,0.3445662,37184.0,37183.0,0.60921803]
[1643935813641,0.00010814,37184.0,37183.0,0.60921803]
[1643935813841,0.3445662,37184.0,37183.0,0.60921803]
[1643935814241,0.00010814,37184.0,37183.0,0.60921803]
[1643935814441,0.3445662,37184.0,37183.0,0.60921803]
[1643935814642,0.3445662,37184.0,37183.0,0.402624]
[1643935814845,0.3445662,37184.0,37183.0,0.35273214]
[1643935815242,1.1945662,37184.0,37183.0,0.00010814]
[1643935815442,0.85010814,37184.0,37183.0,0.00010814]
[1643935816243,0.85010814,37184.0,37183.0,0.35273214]
[1643935816943,0.00010814,37184.0,37183.0,0.35273214]
[1643935817197,0.00010814,37184.0,37183.0,0.61451049]
[1643935817392,0.34452384,37184.0,37183.0,0.61451049]
[1643935817789,0.34452384,37184.0,37183.0,0.402624]
[1643935817990,0.00010814,37184.0,37183.0,0.402624]
[1643935818191,0.55010814,37184.0,37183.0,0.402624]
[1643935819392,0.00010814,37184.0,37183.0,0.402624]
[1643935819992,0.90010814,37184.0,37183.0,0.35273214]
[1643935820199,0.00010814,37184.0,37183.0,0.35273214]
[1643935821043,0.75010814,37184.0,37183.0,0.35273214]
[1643935822642,0.00010814,37184.0,37183.0,0.402624]
[1643935823044,0.70010814,37184.0,37183.0,0.35273214]
[1643935824345,0.00010814,37184.0,37183.0,0.402624]
[1643935824546,0.00010814,37184.0,37183.0,0.55849572]
[1643935825196,0.00010814,37184.0,37183.0,0.60838758]
[1643935825793,0.00010814,37184.0,37183.0,0.60827249]
[1643935825993,0.45010814,37184.0,37183.0,0.60827249]
[1643935826195,0.45010814,37184.0,37183.0,0.40250891]
[1643935826594,0.79484348,37184.0,37183.0,0.40250891]
[1643935826798,0.45010814,37184.0,37183.0,0.40250891]
[1643935827998,1.00010814,37184.0,37183.0,0.40250891]
[1643935828197,0.45010814,37184.0,37183.0,0.40250891]
[1643935828641,0.45010814,37184.0,37183.0,0.60798992]
[1643935828842,0.45010814,37184.0,37183.0,0.40250891]
[1643935829044,0.95010814,37184.0,37183.0,0.40250891]
[1643935830743,0.45010814,37184.0,37183.0,0.40250891]
[1643935831143,0.45010814,37184.0,37183.0,0.6077194]
[1643935831343,0.45010814,37184.0,37183.0,0.60772635]
[1643935831644,0.45010814,37184.0,37183.0,0.25652844]
[1643935831842,0.45010814,37184.0,37183.0,0.60915244]
[1643935832042,1.00010814,37184.0,37183.0,0.04989186]
[1643935832311,0.45010814,37184.0,37183.0,0.25727999]
[1643935832511,0.45010814,37184.0,37183.0,0.40251586]
[1643935833912,1.25010814,37184.0,37183.0,0.40251586]
[1643935834111,0.45010814,37184.0,37183.0,0.40251586]
[1643935834912,1.00010814,37184.0,37183.0,0.40251586]
[1643935835411,0.45010814,37184.0,37183.0,0.40251586]
[1643935836438,0.45010814,37184.0,37183.0,0.60865903]
[1643935836639,0.79484176,37184.0,37183.0,0.25603503]
[1643935836842,0.79484176,37184.0,37183.0,0.40251586]
[1643935838042,0.79484176,37184.0,37183.0,0.60807571]
[1643935838341,0.79484176,37184.0,37183.0,0.60883133]
[1643935838342,0.45010814,37184.0,37183.0,0.60883133]
[1643935838541,0.45010814,37184.0,37183.0,0.40251586]
[1643935839042,0.7948117,37184.0,37183.0,0.40251586]
[1643935839446,0.45010814,37184.0,37183.0,0.40251586]
[1643935840190,0.00010814,37184.0,37183.0,0.40251586]
[1643935840391,0.34491928,37184.0,37183.0,0.40251586]
[1643935840791,0.89491928,37184.0,37183.0,0.40251586]
[1643935841794,1.34491928,37184.0,37183.0,0.40251586]
[1643935842097,0.89491928,37184.0,37183.0,0.40251586]
[1643935842797,0.34481114,37184.0,37182.0,0.31903442]
[1643935842995,0.34481114,37184.0,37183.0,0.55883054]
[1643935843195,0.34481114,37184.0,37183.0,0.352624]
[1643935843444,0.175957,37185.0,37183.0,0.352624]
[1643935843744,0.34479821,37184.0,37183.0,0.419888]
[1643935844650,0.34279821,37184.0,37183.0,0.419888]
[1643935845245,0.00036058,37185.0,37183.0,0.419888]
[1643935845445,0.40022937,37186.0,37184.0,0.41988978]
[1643935845646,0.39956396,37186.0,37184.0,0.06726578]
[1643935845846,0.95022926,37186.0,37184.0,0.06726578]
[1643935846645,0.95022926,37186.0,37185.0,0.24]
[1643935846847,0.94956396,37186.0,37185.0,0.24]
[1643935848890,0.39956396,37186.0,37185.0,0.592624]
[1643935849793,2.00218796,37186.0,37185.0,0.24]
[1643935849990,1.64956396,37186.0,37185.0,0.23594501]
[1643935851440,2.00218796,37186.0,37185.0,0.23594501]
[1643935854144,1.64956396,37186.0,37185.0,0.23594501]
[1643935854344,1.64956396,37186.0,37184.0,0.06726578]
[1643935854345,0.352624,37185.0,37184.0,0.06726578]
[1643935854994,0.352624,37185.0,37184.0,0.28110414]
[1643935855194,0.34478375,37185.0,37184.0,0.63372814]
[1643935856591,0.34514433,37186.0,37185.0,0.352624]
[1643935856793,0.34544907,37187.0,37185.0,0.59067435]
[1643935856993,0.00036058,37190.0,37187.0,2.2525724]
[1643935856994,0.39992454,37190.0,37187.0,2.2525724]
[1643935857192,0.64716723,37198.0,37190.0,0.6481185]
[1643935857193,0.39956396,37194.0,37190.0,0.6481185]
[1643935857393,0.41987044,37197.0,37193.0,0.85261607]
[1643935857598,0.41987044,37197.0,37196.0,0.37831025]
[1643935857599,0.02030648,37197.0,37196.0,0.37831025]
[1643935857797,0.5503595,37197.0,37196.0,0.15529207]
[1643935857994,0.5503595,37197.0,37196.0,0.35699154]
[1643935858195,0.55,37197.0,37196.0,0.35699154]
[1643935858451,0.55,37197.0,37196.0,0.42422554]
[1643935859253,0.55,37197.0,37196.0,0.71475802]
[1643935860256,0.55,37197.0,37196.0,0.84408354]
[1643935860854,0.55,37197.0,37196.0,0.98418046]
[1643935861053,0.15953211,37199.0,37196.0,0.98418046]
[1643935861255,0.58631212,37200.0,37198.0,0.06723614]
[1643935861454,0.39956396,37199.0,37198.0,0.06723614]
[1643935861654,1.69956396,37199.0,37198.0,0.27025875]
[1643935861855,2.05218796,37199.0,37197.0,0.134474]
[1643935862057,0.352516,37198.0,37196.0,0.26893347]
[1643935862299,0.91125257,37198.0,37197.0,0.067246]
[1643935862499,0.91161207,37198.0,37197.0,0.067246]
[1643935862696,0.75243946,37198.0,37197.0,0.067246]
[1643935862901,0.75207996,37198.0,37197.0,0.067246]
[1643935863097,0.352516,37198.0,37197.0,0.067246]
[1643935865098,0.352516,37198.0,37196.0,0.20169947]
[1643935865297,0.75243946,37198.0,37196.0,0.20169947]
[1643935865502,0.3528755,37198.0,37196.0,0.20169947]
[1643935865698,0.34458119,37197.0,37196.0,0.20169947]
[1643935865941,0.45323919,37197.0,37196.0,0.20169947]
[1643935867843,0.45312684,37197.0,37196.0,0.20169947]
[1643935869046,0.108658,37197.0,37196.0,0.20169947]
[1643935872101,0.76075927,37197.0,37195.0,0.06724551]
[1643935872301,0.25541862,37196.0,37195.0,0.06724551]
[1643935872502,0.25541862,37196.0,37192.0,0.134494]
[1643935872503,0.02358032,37193.0,37192.0,0.06725982]
[1643935872703,0.352516,37193.0,37190.0,0.134509]
[1643935872905,0.31391027,37192.0,37190.0,0.134509]
[1643935873105,0.35847708,37191.0,37190.0,0.134509]
[1643935873306,0.41227708,37191.0,37190.0,0.134509]
[1643935873547,0.162458,37191.0,37190.0,0.134509]
[1643935874748,0.39600983,37191.0,37190.0,0.134509]
[1643935874948,0.162458,37191.0,37190.0,0.134509]
[1643935876152,0.45474562,37191.0,37190.0,0.134509]
[1643935876353,0.419783,37190.0,37185.0,0.04629086]
[1643935876553,0.34446624,37186.0,37185.0,0.04629086]
[1643935876754,0.4605769,37186.0,37185.0,0.04629086]
[1643935876953,0.5605769,37186.0,37185.0,0.04629086]
[1643935877598,0.262458,37186.0,37185.0,0.04629086]
[1643935877998,0.162458,37186.0,37185.0,0.04629086]
[1643935878799,0.162458,37186.0,37185.0,0.39880686]
[1643935878800,0.0538,37186.0,37185.0,0.39880686]
[1643935879399,0.0538,37186.0,37185.0,0.04629086]
[1643935879400,1.406316,37186.0,37185.0,0.04629086]
[1643935880099,1.162458,37186.0,37185.0,0.04629086]
[1643935880300,1.406316,37186.0,37185.0,0.04629086]
[1643935880502,1.162458,37186.0,37185.0,0.04629086]
[1643935880801,1.406316,37186.0,37185.0,0.04629086]
[1643935881043,1.162458,37186.0,37185.0,0.04629086]
[1643935881247,1.0538,37186.0,37185.0,0.39880686]
[1643935881546,1.406316,37186.0,37185.0,0.04629086]
[1643935881846,1.406316,37186.0,37185.0,0.04621806]
[1643935882145,1.0,37186.0,37185.0,0.04621806]
[1643935882346,1.0,37186.0,37185.0,0.39873406]
[1643935882945,0.0003595,37190.0,37186.0,0.2017825]
[1643935883145,0.3532728,37189.0,37187.0,0.134521]
[1643935884045,0.352516,37189.0,37187.0,0.134521]
[1643935884246,0.452516,37189.0,37187.0,0.134521]
[1643935888003,0.452516,37189.0,37188.0,0.2122321]
[1643935888201,0.00075681,37190.0,37188.0,0.2122321]
[1643935888442,0.10075681,37190.0,37188.0,0.2122321]
[1643935888644,0.10075681,37190.0,37187.0,0.269025]
[1643935888844,0.1,37190.0,37187.0,0.269025]
[1643935889248,0.10075681,37190.0,37188.0,0.25465418]
[1643935889444,0.00075681,37190.0,37188.0,0.25465418]
[1643935890044,0.0003595,37193.0,37188.0,0.46099684]
[1643935890245,0.352516,37192.0,37188.0,0.46099684]
[1643935890445,0.00075681,37191.0,37188.0,0.3219051]
[1643935891245,0.0003595,37193.0,37188.0,0.52848988]
[1643935891446,0.352516,37192.0,37188.0,0.52848988]
[1643935891649,0.0007568,37191.0,37188.0,0.3219051]
[1643935891847,0.0007568,37191.0,37189.0,0.067251]
[1643935892049,0.352516,37190.0,37189.0,0.067251]
[1643935892302,0.352516,37190.0,37189.0,0.201753]
[1643935896947,0.0011163,37191.0,37189.0,0.201753]
[1643935897148,0.0007568,37191.0,37189.0,0.201753]
[1643935897346,0.0003595,37193.0,37189.0,0.201753]
[1643935897546,0.3532728,37192.0,37190.0,0.34327229]
[1643935897749,0.0007568,37192.0,37191.0,0.11724484]
[1643935897947,0.0007568,37192.0,37191.0,0.46976084]
[1643935898147,0.0003595,37193.0,37192.0,1.052516]
[1643935898447,0.02155619,37194.0,37193.0,0.352516]
[1643935898647,0.02191569,37194.0,37193.0,0.40250807]
[1643935898848,0.02155619,37194.0,37193.0,0.40250807]
[1643935899449,0.0003595,37198.0,37193.0,0.46974407]
[1643935899706,0.0003595,37198.0,37196.0,0.067236]
[1643935899898,0.0199916,37199.0,37196.0,0.067236]
[1643935900097,0.0199916,37199.0,37197.0,0.352516]
[1643935901098,0.0199916,37199.0,37197.0,0.419754]
[1643935901298,0.352516,37198.0,37197.0,0.067238]
[1643935901499,0.0199916,37199.0,37197.0,0.067238]
[1643935901699,0.352516,37198.0,37192.0,0.15063963]
[1643935901898,0.28728528,37193.0,37192.0,0.15063963]
[1643935902598,0.28728528,37193.0,37192.0,0.21789401]
[1643935902998,0.00111685,37194.0,37192.0,0.21789401]
[1643935903456,0.0003595,37194.0,37192.0,0.21789401]
[1643935903655,0.34585919,37195.0,37192.0,0.21789401]
[1643935904055,0.34474234,37194.0,37192.0,0.21789401]
[1643935904258,0.34510184,37194.0,37192.0,0.21789401]
[1643935904456,0.34510184,37194.0,37193.0,0.352516]
[1643935904658,0.34474234,37194.0,37192.0,0.21789401]
[1643935904856,0.34474234,37194.0,37193.0,0.352516]
[1643935905054,1.24474234,37194.0,37193.0,0.352516]
[1643935905255,1.24474234,37194.0,37192.0,0.21789401]
[1643935905455,1.24510184,37194.0,37193.0,0.352516]
[1643935905655,1.59761784,37194.0,37192.0,0.21789401]
[1643935905857,1.35375984,37194.0,37192.0,0.21789401]
[1643935906057,1.59761784,37194.0,37192.0,0.21789401]